Cogmind - Beta 12 @@@ ROGUE MODE // 2023.10.10 @ 20:05:03 Player: ChromeKnight Result: Destroyed by S-27 Virus with Autogun Performance ------------- Evolutions (6) 3000 Regions Visited (17) 3400 Robots Destroyed (128) 640 Value Destroyed (3788) 3788 Prototype IDs (27) 540 Alien Tech Used (2) 400 Bonus (509) 509 TOTAL SCORE: 12277 Bonus ------- Follower Combat Kills 237 Met Data Miner 300 Friendly Fire -28 Cogmind --------- Core Integrity 0/1150 Matter 284/300 Energy 220/220 System Corruption 18% Temperature Warm (139) Movement Walking (185) Ox1 Location -4/Factory Parts ------- > --- POWER (2) -------- Micro Fission Core Light Antimatter Reactor > --- PROPULSION (5) --- Flexi-carbon Leg Advanced VSS Leg Antigrav System Antigrav System Antigrav System > --- UTILITY (10) ----- Improved Heat Sink Advanced Signal Interpreter Advanced Targeting Computer Improved Target Analyzer Improved Target Analyzer Improved Force Booster Improved Medium Armor Plating Graphene Brace Experimental Hacking Suite > --- WEAPON (3) ------- Wave Gun KE Penetrator Molecular Scythe > --- INVENTORY (5) ---- Micro Fission Core Micro Fission Core Advanced Actuator Array Graphene Brace High-powered Shock Rifle Peak State ------------ > --- POWER ------------ Micro Fission Core Light Antimatter Reactor > --- PROPULSION ------- Flexi-carbon Leg Advanced VSS Leg Antigrav System Antigrav System Antigrav System > --- UTILITY ---------- Improved Heat Sink Advanced Signal Interpreter Advanced Targeting Computer Improved Target Analyzer Improved Target Analyzer Improved Force Booster Improved Medium Armor Plating Graphene Brace Experimental Hacking Suite > --- WEAPON ----------- Wave Gun KE Penetrator Molecular Scythe > --- INVENTORY -------- Micro Fission Core Nuclear Pulse Thruster Advanced Actuator Array Graphene Brace High-powered Shock Rifle [Rating: 113] Favorites ----------- Power Improved Deuterium Engine Engine Improved Deuterium Engine Power Core Light Nuclear Core Reactor Light Antimatter Reactor Propulsion Improved Carbon-fiber Leg Treads Light Treads Leg Improved Carbon-fiber Leg Hover Unit Antigrav System Flight Unit VTOL Module Utility Hacking Suite Device Improved Reaction Control System Storage Medium Storage Unit Processor Improved Signal Interpreter Hackware Hacking Suite Protection Hardened Heavy Armor Plating Weapon Katana Energy Gun Improved EM Shotgun Ballistic Gun Light Assault Rifle Ballistic Cannon Light Antimatter Cannon Launcher Precision Grenade Launcher Special Weapon Improved Plasma Cutter Impact Weapon Power Maul Slashing Weapon Katana Build | -11 -10 -10 -9 -9 -9 -8 -8 -7 -6 -6 -6 -6 -5 -5 -5 -5 -4 ------- Run | Jun Mat Min Mat Min Exi Min Mat Fac Fac Low Low Dat Pro Fac Was Fac Fac Slots Evolved 12 | . . . 2 . . . 2 2 2 . . . . 2 . . 2 Power 1 | . . . . . . . . 1 . . . . . . . . . Propulsion 3 | . . . 1 . . . 1 . . . . . . . . . 1 Utility 7 | . . . 1 . . . 1 1 2 . . . . 1 . . 1 Weapon 1 | . . . . . . . . . . . . . . 1 . . . Parts Attached 167 | 5 13 5 12 . . . 30 17 12 3 5 . 12 7 3 2 41 Power 23 | 1 4 2 1 . . . 2 4 1 1 . . 1 2 . . 4 Engine 11 | 1 4 1 1 . . . 1 1 1 . . . 1 . . . . Core 11 | . . 1 . . . . 1 3 . 1 . . . 2 . . 3 Reactor 1 | . . . . . . . . . . . . . . . . . 1 Propulsion 56 | 2 2 2 7 . . . 18 4 2 1 . . 7 1 1 . 9 Treads 10 | 2 2 . 3 . . . . . . . . . 2 . . . 1 Leg 38 | . . 2 4 . . . 18 4 2 1 . . 3 . . . 4 Wheel . | . . . . . . . . . . . . . . . . . . Hover 5 | . . . . . . . . . . . . . . 1 . . 4 Flight 3 | . . . . . . . . . . . . . 2 . 1 . . Utility 49 | 1 2 . 1 . . . 4 6 9 . 5 . 3 1 1 1 15 Device 13 | . . . . . . . 1 2 2 . 1 . . . 1 . 6 Storage 3 | 1 1 . . . . . . . 1 . . . . . . . . Processor 14 | . . . . . . . . . 5 . 1 . . 1 . 1 6 Hackware 7 | . 1 . 1 . . . 1 1 . . . . 1 . . . 2 Protection 12 | . . . . . . . 2 3 1 . 3 . 2 . . . 1 Artifact . | . . . . . . . . . . . . . . . . . . Weapon 39 | 1 5 1 3 . . . 6 3 . 1 . . 1 3 1 1 13 Energy Gun 7 | 1 1 . 1 . . . . . . . . . . . . . 4 Energy Cannon . | . . . . . . . . . . . . . . . . . . Ballistic Gun 17 | . 4 1 2 . . . 5 1 . . . . . . . . 4 Ballistic Cannon 1 | . . . . . . . . . . . . . . . . . 1 Launcher 1 | . . . . . . . . 1 . . . . . . . . . Special Weapon 5 | . . . . . . . . . . . . . . 2 1 . 2 Impact Weapon 2 | . . . . . . . . 1 . . . . . . . . 1 Slashing Weapon 6 | . . . . . . . 1 . . 1 . . 1 1 . 1 1 Piercing Weapon . | . . . . . . . . . . . . . . . . . . Special Melee Weapon . | . . . . . . . . . . . . . . . . . . Unidentified Prototypes 11 | . . . . . . . 2 1 . . 1 . . 2 . . 5 Corrupted Parts 2 | . . . . . . . . . . . . . 1 . 1 . . System Corruption 12 | . . . . . . . . . . . . . 5 . 7 . . Parts Lost 54 | . 1 2 . . . . 3 1 4 2 2 . 19 1 . 7 12 Power 6 | . . 1 . . . . . 1 1 1 . . 2 . . . . Propulsion 19 | . 1 1 . . . . 1 . 1 1 . . 10 . . 2 2 Utility 18 | . . . . . . . 1 . 2 . 2 . 5 1 . 3 4 Weapon 11 | . . . . . . . 1 . . . . . 2 . . 2 6 Highest Loss Streak 8 | . 1 1 . . . . 2 1 3 2 1 . 8 1 . 5 5 To Critical Strikes . | . . . . . . . . . . . . . . . . . . Average Slot Usage (%) 87 | . 82 95 96 100 100 100 95 93 89 92 90 93 69 41 44 37 52 Engine 7 | . 14 10 11 11 11 11 4 6 7 10 6 6 3 . . . . Core 2 | . . . . . . . 4 7 2 1 6 6 . . . . 3 Treads 4 | . 27 11 17 . . . . . . . . . 1 . . . . Leg 21 | . . 15 12 33 33 33 34 29 25 25 25 25 16 . . . 3 Device 2 | . . . . . . . . 1 6 6 3 6 3 . . . 8 Storage 7 | . 14 14 11 11 11 11 9 7 6 6 6 6 5 . . . . Processor 6 | . . . . . . . . . 11 20 20 25 21 20 16 20 19 Hackware 10 | . . 14 21 22 22 22 17 15 7 . . . . 5 5 4 3 Protection 3 | . . . . . . . 6 7 5 6 6 6 5 . . . . Energy Gun 2 | . 8 . 5 11 11 11 1 . . . . . . . . . 1 Ballistic Gun 8 | . 16 28 16 11 11 11 11 5 . . . . . . . . 2 Impact Weapon 1 | . . . . . . . . . 6 5 . . . . . . 1 Slashing Weapon 3 | . . . . . . . 4 7 6 6 12 12 9 5 5 4 2 Naked Turns . | . . . . . . . . . . . . . . . . . . Heaviest Build 67 | 9 17 15 22 22 22 22 30 53 67 67 62 61 61 4 4 4 49 Greatest Support 74 | 40 40 40 63 30 30 30 71 73 73 74 74 74 74 4 19 19 38 Greatest Overweight (x) 5 | . . 1 . . . . . . . 1 . . 2 . . . 5 Average Overweight (x) . | . . . . . . . . . . . . . . . . . . Largest Inventory Capacity 15 | 8 10 10 10 10 10 10 10 10 15 15 15 15 15 5 5 5 5 Average Capacity 10 | 6 9 10 10 10 10 10 10 10 10 15 15 15 13 5 5 5 5 Most Carried 14 | 5 10 10 10 10 10 10 10 10 10 14 14 10 12 5 5 5 5 Average Carried 9 | 2 8 9 9 9 10 10 9 9 8 12 12 10 9 4 5 4 3 Final Capacity 15 | 8 10 10 10 10 10 10 10 10 15 15 15 15 5 5 5 5 5 Final Carried 14 | 5 9 10 8 10 10 10 10 10 10 14 10 10 5 5 5 5 5 Class Distribution -------------------- 38% | Scavenger-Mutant 36% | Hacker-Mutant 25% | Mutant Dominant Class ---------------- Mutant | -10/Materials Scavenger-Mutant | -10/Mines Hacker-Mutant | -9/Materials Hacker-Mutant | -9/Mines Hacker-Mutant | -9/Exiles Hacker-Mutant | -8/Mines Scavenger-Mutant | -8/Materials Hacker-Mutant | -7/Factory Hacker-Mutant | -6/Factory Mutant | -6/Lower Caves Scavenger-Mutant | -6/Lower Caves Scavenger-Mutant | -6/Data Miner Scavenger-Mutant | -5/Proximity Caves Scavenger-Mutant | -5/Factory Scavenger-Mutant | -5/Waste Mutant | -5/Factory Mutant | -4/Factory Resources | -11 -10 -10 -9 -9 -9 -8 -8 -7 -6 -6 -6 -6 -5 -5 -5 -5 -4 ----------- Run | Jun Mat Min Mat Min Exi Min Mat Fac Fac Low Low Dat Pro Fac Was Fac Fac Matter Collected 2536 | 250 183 93 266 61 . 16 517 302 97 46 58 . 85 75 . 20 467 Remotely . | . . . . . . . . . . . . . . . . . . Salvage Created 5426 | . 489 89 985 167 . . 1130 720 346 370 277 . 68 . . 20 765 Parts 290 | . 33 3 69 11 . . 55 33 10 8 17 . 10 . . 3 38 Haulers Intercepted 7 | . . . 1 . . . 3 2 . . . . . . . . 1 Recyclers Shooed 9 | . 1 1 7 . . . . . . . . . . . . . . Parts Field Recycled . | . . . . . . . . . . . . . . . . . . Retrieved Matter . | . . . . . . . . . . . . . . . . . . Parts Self-Destructed 45 | . . . . . . . . . . 8 16 . 21 . . . . Prevented 4 | . . . . . . . . . . 4 . . . . . . . Kills | -11 -10 -10 -9 -9 -9 -8 -8 -7 -6 -6 -6 -6 -5 -5 -5 -5 -4 ------- Run | Jun Mat Min Mat Min Exi Min Mat Fac Fac Low Low Dat Pro Fac Was Fac Fac Combat Hostiles Destroyed 86 | . 11 4 15 5 . . 14 7 4 4 8 . 4 . . . 10 Melee 34 | . . . . . . . 6 3 4 2 8 . 4 . . . 7 Guns 45 | . 11 4 14 5 . . 7 3 . . . . . . . . 1 AOE 2 | . . . 1 . . . 1 . . . . . . . . . . Classes Destroyed 14 | . 5 . 3 1 . . 2 1 1 . . . 1 . . . . Worker 9 | . 2 . 1 . . . 1 3 . . . . . . . 1 1 Tunneler 1 | . . . . 1 . . . . . . . . . . . . . Hauler 7 | . . . 1 . . . 3 2 . . . . . . . . 1 Recycler 10 | . . . 4 . . . 2 2 1 . . . . . . . 1 Operator 4 | . 2 . 1 . . . 1 . . . . . . . . . . Drone 2 | . . . . . . . . . . . . . 2 . . . . Watcher 11 | . 2 . 3 . . . 1 4 1 . . . . . . . . Swarmer 27 | . 4 3 7 3 . . . . . 1 6 . 2 . . . 1 Grunt 30 | . 7 1 4 2 . . 9 4 1 . 1 . . . . . 1 Duelist 2 | . . . . . . . 1 . . . . . . . . . 1 Sentry 10 | . . . 4 . . . 2 1 1 . 1 . . . . . 1 Specialist 3 | . . . . . . . 2 . . 1 . . . . . . . Hunter 3 | . . . . . . . . . 1 2 . . . . . . . Programmer 9 | . . . . . . . . 2 1 . . . . . . . 6 Best Kill Streak 6 | . 4 3 6 3 . . 6 6 2 1 3 . 1 . . 1 4 Combat Bots Only 4 | . 4 3 4 3 . . 3 3 2 1 3 . 1 . . . 3 Max Kills in Single Turn 2 | . 1 2 2 1 . . 1 2 1 1 1 . 1 . . 1 1 Gunslinging 1 | . . 1 1 . . . . . . . . . . . . . . Exploded 1 | . . . 1 . . . 1 . . . . . . . . . . Melee 1 | . . . . . . . 1 1 1 1 1 . 1 . . . 1 Uniques/NPCs Destroyed . | . . . . . . . . . . . . . . . . . . Combat | -11 -10 -10 -9 -9 -9 -8 -8 -7 -6 -6 -6 -6 -5 -5 -5 -5 -4 -------- Run | Jun Mat Min Mat Min Exi Min Mat Fac Fac Low Low Dat Pro Fac Was Fac Fac Damage Taken 13639 | . 563 184 565 160 . . 1470 971 1164 609 614 . 3063 72 . 774 3430 Core 2979 | . 104 33 149 36 . . 264 106 51 . 58 . 416 49 . 558 1155 Absorbed by Shields . | . . . . . . . . . . . . . . . . . . Regen/Repaired (Parts) 437 | . . . . . . . 228 209 . . . . . . . . . Core Remaining (%) 58 | 100 . 45 . . . 53 52 84 . . . . 38 . . 39 . Volleys Fired 220 | . 59 15 57 13 . . 44 16 . . . . . 1 . 1 14 Largest 2 | . 2 2 2 2 . . 2 1 . . . . . 1 . 1 2 Hottest 114 | . 80 40 65 65 . . 73 36 . . . . . 20 . 20 114 Shots Fired 390 | . 111 30 111 26 1 . 71 18 . . . . . 1 . 1 20 Gun 382 | . 111 30 111 26 1 . 71 15 . . . . . . . . 17 Cannon . | . . . . . . . . . . . . . . . . . . Launcher 3 | . . . . . . . . 3 . . . . . . . . . Special 5 | . . . . . . . . . . . . . . 1 . 1 3 Kinetic 285 | . 68 30 86 13 . . 62 15 . . . . . . . . 11 Thermal 51 | . 43 . . . . . . . . . . . . 1 . 1 6 Explosive 3 | . . . . . . . . 3 . . . . . . . . . Electromagnetic 48 | . . . 25 13 1 . 9 . . . . . . . . . . Robot Hit Streak 17 | . 17 8 17 6 2 . 9 5 . . . . . . . . 4 Robot Miss Streak 5 | . 3 2 3 4 . . 5 4 . . . . . 2 . . 4 Penetration Max 1 | . . . . . . . . . . . . . . . . . 1 Secondary Targets 9 | . 2 1 2 1 . . 3 . . . . . . . . . . Max Gunslinging Chain 1 | . 1 1 1 1 . . 1 . . . . . . . . . . Shots Hit Robots 438 | . 76 22 85 18 1 . 73 45 30 19 17 . 7 . . 1 44 Core Hits 197 | . 31 10 44 9 1 . 32 37 8 2 7 . 3 . . 1 12 Critical Kills . | . . . . . . . . . . . . . . . . . . Critical Parts Destroyed 6 | . . . . . . . . 2 . 1 . . . . . . 3 Critical Strikes 17 | . . . . . . . 1 2 2 1 3 . . . . . 8 Burn 1 | . . . . . . . . . . . . . . . . . 1 Destroy 1 | . . . . . . . . . . . . . . . . . 1 Smash 6 | . . . . . . . . 2 1 1 . . . . . . 2 Sever 9 | . . . . . . . 1 . 1 . 3 . . . . . 4 Melee Attacks 235 | . . . . . . . 33 38 38 38 29 . 12 . . 4 43 Impact 42 | . . . . . . . . 5 9 16 . . . . . . 12 Slashing 193 | . . . . . . . 33 33 29 22 29 . 12 . . 4 31 Piercing . | . . . . . . . . . . . . . . . . . . Sneak Attacks 18 | . . . . . . . 7 5 2 . . . . . . 1 3 Combat Hostiles . | . . . . . . . . . . . . . . . . . . Follow-up Attacks 10 | . . . . . . . . 1 5 2 2 . . . . . . Damage Inflicted 10963 | . 671 204 1194 259 24 . 1783 1647 1150 932 692 . 263 . . 84 2060 Guns 3556 | . 671 204 1043 259 24 . 730 330 . . . . . . . . 295 Cannons . | . . . . . . . . . . . . . . . . . . Explosions 357 | . . . 151 . . . 27 179 . . . . . . . . . Melee 7030 | . . . . . . . 1026 1138 1150 932 692 . 263 . . 68 1761 Ramming 20 | . . . . . . . . . . . . . . . . 16 4 Kinetic 2465 | . 384 204 657 110 . . 606 330 . . . . . . . . 174 Thermal 559 | . 287 . 151 . . . . . . . . . . . . . 121 Explosive 75 | . . . . . . . . 75 . . . . . . . . . Electromagnetic 814 | . . . 386 149 24 . 151 104 . . . . . . . . . Impact 1629 | . . . . . . . . 257 342 551 . . . . . . 479 Slashing 5401 | . . . . . . . 1026 881 808 381 692 . 263 . . 68 1282 Piercing . | . . . . . . . . . . . . . . . . . . Highest Corruption 18 | . . . 2 2 2 2 7 6 1 2 2 2 7 . 14 14 18 Average Corruption 4 | . . . 1 2 2 2 7 5 1 1 2 2 4 . 12 14 12 Corruption Purged . | . . . . . . . . . . . . . . . . . . Corruption Blocked . | . . . . . . . . . . . . . . . . . . Effects 120 | . . . 5 3 2 12 11 20 6 5 8 1 7 . 1 12 27 Message Errors 34 | . . . 2 . . 3 3 9 . 1 1 1 2 . 1 2 9 Matter Fused 27 | . . . 2 1 . 4 3 3 . 1 4 . 1 . . 1 7 Heat Flow Errors 8 | . . . . . . . . 2 1 2 1 . . . . . 2 Energy Discharges 19 | . . . . . 1 3 3 . 2 1 2 . 2 . . 1 4 Parts Rejected 2 | . . . . . . . . . . . . . . . . 1 1 Parts Fused 1 | . . . . . . . . . . . . . 1 . . . . Data Loss (minor) 13 | . . . 1 . . 1 1 3 2 . . . 1 . . 1 3 Data Loss (major) 5 | . . . . . . 1 1 1 1 . . . . . . 1 . Misfires 4 | . . . . 1 1 . . 2 . . . . . . . . . Alerts 1 | . . . . . . . . . . . . . . . . . 1 Misdirections 5 | . . . . . . . . . . . . . . . . 5 . Weapon Failures 1 | . . . . 1 . . . . . . . . . . . . . Overload Shots . | . . . . . . . . . . . . . . . . . . Overflow Damage 1406 | . . . . . . . 152 230 129 391 12 . 28 . . . 464 Projectiles . | . . . . . . . . . . . . . . . . . . Explosions . | . . . . . . . . . . . . . . . . . . Melee 1406 | . . . . . . . 152 230 129 391 12 . 28 . . . 464 Knockbacks 7 | . . . . . . . . . 3 2 . . . . . . 2 Impact 7 | . . . . . . . . . 3 2 . . . . . . 2 Kinetic . | . . . . . . . . . . . . . . . . . . Secondary . | . . . . . . . . . . . . . . . . . . Self-Inflicted Damage 222 | . . . 67 35 . . 20 90 . . . . . . . 8 2 Shots 8 | . . . 2 1 . . 1 4 . . . . . . . . . Rammed 4 | . . . . . . . . . . . . . . . . 3 1 Targets Rammed 4 | . . . . . . . . . . . . . . . . 3 1 Kicked . | . . . . . . . . . . . . . . . . . . Crushed . | . . . . . . . . . . . . . . . . . . Highest Temperature 283 | . 204 34 20 11 6 . 42 247 144 150 241 . 16 . . . 283 Average Temperature 63 | . 82 15 11 5 4 . 16 63 78 67 119 . 8 . . . 157 Received Heat Transfer 2394 | . 216 69 138 15 . . 441 330 114 . 45 . 837 18 . 90 81 Siege Activations . | . . . . . . . . . . . . . . . . . . Robots Corrupted . | . . . . . . . . . . . . . . . . . . Combat Hostiles . | . . . . . . . . . . . . . . . . . . Parts Fried 10 | . . . . . . . . 3 2 4 . . . . . . 1 Impact Corruptions 23 | . . . . . . . . 5 2 8 . . . . . . 8 Robots Melted . | . . . . . . . . . . . . . . . . . . Combat Hostiles . | . . . . . . . . . . . . . . . . . . Parts Melted 2 | . 2 . . . . . . . . . . . . . . . . Heat Transferred 1059 | . 650 . 150 . . . . . . . . . . . . . 259 Parts Sabotaged . | . . . . . . . . . . . . . . . . . . Parts Stolen . | . . . . . . . . . . . . . . . . . . Parts Stripped . | . . . . . . . . . . . . . . . . . . Power Chain Reactions 3 | . . . 2 1 . . . . . . . . . . . . . Missiles Intercepted . | . . . . . . . . . . . . . . . . . . Alert | -11 -10 -10 -9 -9 -9 -8 -8 -7 -6 -6 -6 -6 -5 -5 -5 -5 -4 ------- Run | Jun Mat Min Mat Min Exi Min Mat Fac Fac Low Low Dat Pro Fac Was Fac Fac Peak Influence 509 | . 295 104 347 245 . 112 237 164 87 . . . . 509 189 420 300 Initial 494 | . . 34 . 48 . . 43 39 44 . . . . 494 174 132 205 Average 96 | . 125 34 100 192 . 6 96 63 45 . . . . 495 177 251 188 Maximum Alert Level 2 | . 1 . 1 1 . . 1 . . . . . . 2 . 2 1 Low Security (%) 85 | 100 73 100 85 34 . 100 90 100 100 . . . . . 100 52 56 Level 1 13 | . 26 . 14 65 . . 9 . . . . . . . . 38 43 Level 2 1 | . . . . . . . . . . . . . . 100 . 8 . Level 3 . | . . . . . . . . . . . . . . . . . . Level 4 . | . . . . . . . . . . . . . . . . . . Level 5 . | . . . . . . . . . . . . . . . . . . High Security . | . . . . . . . . . . . . . . . . . . Max Security . | . . . . . . . . . . . . . . . . . . Squads Dispatched 23 | . 3 . 2 . . . 3 4 3 . . . . . . 2 6 Investigation 5 | . 1 . . . . . . 1 . . . . . . . 1 2 Extermination 6 | . . . . . . . . 1 2 . . . . . . . 3 Reinforcement 11 | . 2 . 2 . . . 3 1 1 . . . . . . 1 1 Assault . | . . . . . . . . . . . . . . . . . . Garrison 1 | . . . . . . . . 1 . . . . . . . . . Intercept . | . . . . . . . . . . . . . . . . . . Searches Triggered . | . . . . . . . . . . . . . . . . . . Construction Impeded . | . . . . . . . . . . . . . . . . . . Haulers Reinforced 1 | . . . . . . . . 1 . . . . . . . . . Active Scanning Responses . | . . . . . . . . . . . . . . . . . . Cargo Convoy Interrupts . | . . . . . . . . . . . . . . . . . . Stealth | -11 -10 -10 -9 -9 -9 -8 -8 -7 -6 -6 -6 -6 -5 -5 -5 -5 -4 --------- Run | Jun Mat Min Mat Min Exi Min Mat Fac Fac Low Low Dat Pro Fac Was Fac Fac Distress Signals 7 | . 2 . 3 . . . . . . . . . 1 . . 1 . Communications Jammed . | . . . . . . . . . . . . . . . . . . Distress Signals . | . . . . . . . . . . . . . . . . . . Times Spotted 208 | . 23 5 25 7 . 4 23 19 9 7 9 . 23 1 5 23 25 Peak Tracking Total 13 | . 7 3 5 4 . 3 3 4 2 4 4 . 13 1 5 10 6 Tactical Retreats 23 | . 3 . 1 . . . 1 4 2 . 1 . 3 . . 4 4 Traps | -11 -10 -10 -9 -9 -9 -8 -8 -7 -6 -6 -6 -6 -5 -5 -5 -5 -4 ------- Run | Jun Mat Min Mat Min Exi Min Mat Fac Fac Low Low Dat Pro Fac Was Fac Fac Traps Triggered 12 | . 3 . 2 . . . . 3 1 . . . . 1 . 1 1 Indirectly . | . . . . . . . . . . . . . . . . . . Trap Hack Attempts . | . . . . . . . . . . . . . . . . . . Triggered . | . . . . . . . . . . . . . . . . . . Disarmed . | . . . . . . . . . . . . . . . . . . Reprogrammed . | . . . . . . . . . . . . . . . . . . Reused . | . . . . . . . . . . . . . . . . . . Traps Extracted . | . . . . . . . . . . . . . . . . . . Installed . | . . . . . . . . . . . . . . . . . . Triggered 1 | . . . . 1 . . . . . . . . . . . . . Machines | -11 -10 -10 -9 -9 -9 -8 -8 -7 -6 -6 -6 -6 -5 -5 -5 -5 -4 ---------- Run | Jun Mat Min Mat Min Exi Min Mat Fac Fac Low Low Dat Pro Fac Was Fac Fac Machines Disabled 9 | . . . . 3 . . 3 1 . 1 . . 1 . . . . Max in Single Turn 2 | . . . . 2 . . 2 1 . 1 . . 1 . . . . Machines Repaired . | . . . . . . . . . . . . . . . . . . Machines Sabotaged . | . . . . . . . . . . . . . . . . . . Overloaded Fab Kills . | . . . . . . . . . . . . . . . . . . Hacking | -11 -10 -10 -9 -9 -9 -8 -8 -7 -6 -6 -6 -6 -5 -5 -5 -5 -4 --------- Run | Jun Mat Min Mat Min Exi Min Mat Fac Fac Low Low Dat Pro Fac Was Fac Fac Machines Accessed 24 | . 3 . 4 . . . 5 4 . . . 4 . . . 2 2 Terminals 12 | . 3 . 4 . . . 2 2 . . . . . . . 1 . Fabricators 2 | . . . . . . . . 1 . . . . . . . . 1 Repair Stations 4 | . . . . . . . 2 1 . . . . . . . 1 . Recycling Units . | . . . . . . . . . . . . . . . . . . Scanalyzers 1 | . . . . . . . 1 . . . . . . . . . . Garrison Access 1 | . . . . . . . . . . . . . . . . . 1 Total Hacks 97 | . 13 . 13 . . . 19 14 . . . 28 . . . 4 6 Successful 76 | . 7 . 12 . . . 16 9 . . . 28 . . . 2 2 Failed 21 | . 6 . 1 . . . 3 5 . . . . . . . 2 4 Catastrophic 3 | . . . . . . . . 1 . . . . . . . 1 1 Database Lockouts . | . . . . . . . . . . . . . . . . . . Manual 24 | . 6 . 9 . . . 5 3 . 1 . . . . . . . Terminals 36 | . 13 . 13 . . . 5 4 . . . . . . . 1 . Fabricators 7 | . . . . . . . . 3 . . . . . . . . 4 Repair Stations 18 | . . . . . . . 8 7 . . . . . . . 3 . Recycling Units . | . . . . . . . . . . . . . . . . . . Scanalyzers 6 | . . . . . . . 6 . . . . . . . . . . Garrison Access 2 | . . . . . . . . . . . . . . . . . 2 Terminal Hacks 42 | . 5 . 6 . . . 2 . . . . 28 . . . 1 . Record 11 | . . . . . . . . . . . . 11 . . . . . Part Schematic 9 | . . . . . . . . . . . . 9 . . . . . Robot Schematic 5 | . . . . . . . . . . . . 5 . . . . . Robot Analysis 4 | . 3 . 1 . . . . . . . . . . . . . . Prototype ID Bank 7 | . 2 . 1 . . . . . . . . 3 . . . 1 . Repair Station Index 1 | . . . . . . . 1 . . . . . . . . . . Scanalyzer Index 1 | . . . . . . . 1 . . . . . . . . . . Unreport Threat 2 | . . . 2 . . . . . . . . . . . . . . Recall Reinforcements 1 | . . . 1 . . . . . . . . . . . . . . Zone Layout 1 | . . . 1 . . . . . . . . . . . . . . Fabricator Hacks 3 | . . . . . . . . 1 . . . . . . . . 2 Load Schematic 2 | . . . . . . . . 1 . . . . . . . . 1 Build 1 | . . . . . . . . . . . . . . . . . 1 Repair Station Hacks 13 | . . . . . . . 6 6 . . . . . . . 1 . Scan Component 7 | . . . . . . . 3 3 . . . . . . . 1 . Repair 6 | . . . . . . . 3 3 . . . . . . . . . Recycling Unit Hacks . | . . . . . . . . . . . . . . . . . . Scanalyzer 6 | . . . . . . . 6 . . . . . . . . . . Insert Component 2 | . . . . . . . 2 . . . . . . . . . . Analyze 4 | . . . . . . . 4 . . . . . . . . . . Garrison Access Hacks . | . . . . . . . . . . . . . . . . . . Unauthorized Hacks 12 | . 2 . 6 . . . 2 2 . . . . . . . . . Terminals 11 | . 2 . 6 . . . 2 1 . . . . . . . . . Assimilate 1 | . . . 1 . . . . . . . . . . . . . . Botnet 8 | . 1 . 4 . . . 2 1 . . . . . . . . . Operators 2 | . 1 . 1 . . . . . . . . . . . . . . Fabricators 1 | . . . . . . . . 1 . . . . . . . . . Recompile 1 | . . . . . . . . 1 . . . . . . . . . Repair Stations . | . . . . . . . . . . . . . . . . . . Recycling Units . | . . . . . . . . . . . . . . . . . . Scanalyzers . | . . . . . . . . . . . . . . . . . . Garrison Access . | . . . . . . . . . . . . . . . . . . Data Cores Recovered . | . . . . . . . . . . . . . . . . . . Used . | . . . . . . . . . . . . . . . . . . Hacking Detections 15 | . 3 . 4 . . . 3 2 . . . . . . . 1 2 Full Trace Events 5 | . . . . . . . 2 . . . . . . . . 1 2 Feedback Events . | . . . . . . . . . . . . . . . . . . Feedback Blocked . | . . . . . . . . . . . . . . . . . . Robot Schematics Acquired 5 | . . . . . . . . . . . . 5 . . . . . Robots Built . | . . . . . . . . . . . . . . . . . . Authchips . | . . . . . . . . . . . . . . . . . . Time 152 | . . . . . . . . . . . . . . . . . 152 Total Robot Build Rating . | . . . . . . . . . . . . . . . . . . Part Schematics Acquired 11 | . . . . . . . 2 . . . . 9 . . . . . Parts Built . | . . . . . . . . . . . . . . . . . . Authchips . | . . . . . . . . . . . . . . . . . . Time . | . . . . . . . . . . . . . . . . . . Total Part Build Rating . | . . . . . . . . . . . . . . . . . . Parts Repaired 6 | . . . . . . . 3 3 . . . . . . . . . Time 322 | . . . . . . . 196 126 . . . . . . . . . Parts Recycled . | . . . . . . . . . . . . . . . . . . Recycled Matter . | . . . . . . . . . . . . . . . . . . Retrieved Matter . | . . . . . . . . . . . . . . . . . . Retrieved Components . | . . . . . . . . . . . . . . . . . . Parts Scanalyzed 2 | . . . . . . . 2 . . . . . . . . . . Part Schematics Acquired 2 | . . . . . . . 2 . . . . . . . . . . Parts Damaged . | . . . . . . . . . . . . . . . . . . Bothacking | -11 -10 -10 -9 -9 -9 -8 -8 -7 -6 -6 -6 -6 -5 -5 -5 -5 -4 ------------ Run | Jun Mat Min Mat Min Exi Min Mat Fac Fac Low Low Dat Pro Fac Was Fac Fac Used RIF Installer . | . . . . . . . . . . . . . . . . . . Robots Hacked . | . . . . . . . . . . . . . . . . . . Non-combat . | . . . . . . . . . . . . . . . . . . Combat . | . . . . . . . . . . . . . . . . . . Robot Hacks Applied . | . . . . . . . . . . . . . . . . . . Relay Couplers Released . | . . . . . . . . . . . . . . . . . . Fabnet Peak Effective % . | . . . . . . . . . . . . . . . . . . Robots Rewired 1 | . . . . 1 . . . . . . . . . . . . . Allies Hacked . | . . . . . . . . . . . . . . . . . . Hacks Repelled . | . . . . . . . . . . . . . . . . . . Allies | -11 -10 -10 -9 -9 -9 -8 -8 -7 -6 -6 -6 -6 -5 -5 -5 -5 -4 -------- Run | Jun Mat Min Mat Min Exi Min Mat Fac Fac Low Low Dat Pro Fac Was Fac Fac Total Allies 11 | . . . . 6 . . . . 3 . . . 1 . 1 . . Largest Group 6 | . . . . 6 6 4 4 . 3 3 . . 1 . 1 . . Highest-Rated Group 99 | . . . . 99 99 56 56 . 93 93 . . 96 . 31 . . Highest-Rated Ally 96 | . . . . 31 31 16 16 . 31 31 . . 96 . 31 . . Total Orders . | . . . . . . . . . . . . . . . . . . Ally Attacks 91 | . . . . 9 . 10 19 . 1 32 . . 13 . 7 . . Total Damage 1475 | . . . . 46 . 90 184 . 26 519 . . 466 . 144 . . Kills 13 | . . . . 1 . 4 2 . . 3 . . 3 . . . . Allies Corrupted . | . . . . . . . . . . . . . . . . . . Allies Melted 1 | . . . . . . . . . . . . . 1 . . . . Intel | -11 -10 -10 -9 -9 -9 -8 -8 -7 -6 -6 -6 -6 -5 -5 -5 -5 -4 ------- Run | Jun Mat Min Mat Min Exi Min Mat Fac Fac Low Low Dat Pro Fac Was Fac Fac Robot Analysis Total 4 | . 3 . 1 . . . . . . . . . . . . . . Derelict Logs Recovered 7 | . . 1 . 1 . . . . . 2 1 . 2 . . . . Drone Launches . | . . . . . . . . . . . . . . . . . . Drone Recoveries . | . . . . . . . . . . . . . . . . . . Exploration | -11 -10 -10 -9 -9 -9 -8 -8 -7 -6 -6 -6 -6 -5 -5 -5 -5 -4 ------------- Run | Jun Mat Min Mat Min Exi Min Mat Fac Fac Low Low Dat Pro Fac Was Fac Fac Turns Passed 10483 | 89 853 580 949 295 253 704 1384 1382 1030 744 543 99 320 84 33 169 972 Spaces Moved 6568 | 56 390 386 315 186 209 567 676 785 611 473 321 82 218 187 79 369 658 Core 391 | 11 . . . . . . . . . . . . 22 . . 80 278 Treads 891 | 45 390 147 224 . . . . . . . . . 20 . . . 65 Legs 4568 | . . 239 91 186 209 567 676 785 611 473 321 82 154 . . . 174 Wheels . | . . . . . . . . . . . . . . . . . . Hover 141 | . . . . . . . . . . . . . . . . . 141 Flight 577 | . . . . . . . . . . . . . 22 187 79 289 . Fastest Speed 32 | 50 160 120 120 120 120 120 120 122 122 122 122 122 32 35 34 34 50 Average Speed 115 | 138 160 135 148 120 120 120 121 122 123 122 122 122 123 35 34 38 92 Slowest Speed 300 | 160 160 190 160 120 120 120 123 125 125 193 122 122 260 35 35 50 300 Overloaded Moves . | . . . . . . . . . . . . . . . . . . Propulsion Burnouts . | . . . . . . . . . . . . . . . . . . Robots Hopped 11 | . . . . . . . . . . . . . 1 2 . 8 . Cave-ins Triggered 1 | . . . . . . . 1 . . . . . . . . . . Exploration Rate (%) 44 | 4 46 97 27 44 54 95 40 21 12 66 57 74 49 7 81 13 18 Regions Visited 17 Branch Regions 8 Pre-discovered Areas 2 | . . . . . . . . . . . . 1 1 . . . . Known Exits Taken 9 | . . . 1 . 1 . 1 . 1 1 1 1 1 . . 1 . Unknown Exits Taken 6 | 1 1 1 . 1 . 1 . 1 . . . . . . . . . Scrap Searched 9 | . . 1 . . . 1 . . . 2 2 . 3 . . . . Spaces Dug 28 | . . . . . . . 5 3 1 11 3 . . . . 3 2 Terrain Destroyed 63 | . . . 10 2 . . 5 26 1 11 3 . . . . 3 2 Melee 28 | . . . . . . . 5 3 1 11 3 . . . . 3 2 Projectile . | . . . . . . . . . . . . . . . . . . AOE 35 | . . . 10 2 . . . 23 . . . . . . . . . Terrain Rammed . | . . . . . . . . . . . . . . . . . . Walls Destroyed . | . . . . . . . . . . . . . . . . . . Machines Disabled . | . . . . . . . . . . . . . . . . . . Actions | -11 -10 -10 -9 -9 -9 -8 -8 -7 -6 -6 -6 -6 -5 -5 -5 -5 -4 --------- Run | Jun Mat Min Mat Min Exi Min Mat Fac Fac Low Low Dat Pro Fac Was Fac Fac Total 8793 | 66 522 419 705 232 211 590 1126 1135 840 581 434 81 250 201 82 380 938 Wait 1438 | . 47 9 293 28 3 24 293 257 168 69 82 . 5 2 . 4 154 Move 6533 | 55 389 385 314 185 208 566 675 784 610 472 320 81 215 183 78 355 658 Hop 9 | . . . . . . . . . . . . . 1 2 . 6 . Pick Up 94 | 6 7 3 12 3 . . 21 8 9 4 . . 4 1 . 3 13 Fast Attach 85 | 4 6 1 3 . . . 10 10 4 2 3 . 3 5 3 2 29 Attach 53 | 1 3 2 5 . . . 5 4 5 1 3 . 9 2 . . 13 Detach 12 | . . . 1 . . . 1 1 . . . . 2 2 . . 5 Swap 31 | . 4 2 4 . . . 15 3 3 . . . . . . . . Drop 96 | . 7 2 16 1 . . 29 13 10 1 2 . . 3 1 3 8 Fire 220 | . 59 15 57 13 . . 44 16 . . . . . 1 . 1 14 Melee 215 | . . . . . . . 33 37 31 32 24 . 11 . . 4 43 Ram 3 | . . . . . . . . . . . . . . . . 2 1 Kick . | . . . . . . . . . . . . . . . . . . Crush . | . . . . . . . . . . . . . . . . . . Escape Stasis 2 | . . . . . . . . 2 . . . . . . . . . Rewire 2 | . . . . 2 . . . . . . . . . . . . . Trap . | . . . . . . . . . . . . . . . . . . Miscellaneous . | . . . . . . . . . . . . . . . . . . Route ------- -11/Junkyard -10/Materials (discovered 2 exits: *Mat / [*Min]) -10/Mines (discovered 2 exits: *Mat x2) -9/Materials -9/Mines (discovered 2 exits: *Mat / [*Exi]) -9/Exiles (discovered 2 exits: *Min x2) -8/Mines (discovered 2 exits: *Mat x2) -8/Materials (discovered 2 exits: *Fac x2) -7/Factory -6/Factory -6/Lower Caves -6/Lower Caves (discovered 2 exits: *Fac / *Dat) -6/Data Miner -5/Proximity Caves -5/Factory (discovered 3 exits: Fac / Upp / Ext) -5/Waste -5/Factory -4/Factory History --------- Turn | Location | Event 3 | -11/Junkyard | Discovered new exit (range 15) 90 | -11/Junkyard | Entered Materials 316 | -10/Materials | Build established: Mutant 553 | -10/Materials | Discovered new exit (range 10) 644 | -10/Materials | Discovered new exit (range 16) 943 | -10/Materials | Entered Mines 1054 | -10/Mines | Found a damaged Exp. Sensor Array with a note attached 1057 | -10/Mines | Found Prototype Device 1182 | -10/Mines | Core integrity fell below 50% 1223 | -10/Mines | Build established: Scavenger-Mutant 1264 | -10/Mines | Discovered new exit (range 6) 1477 | -10/Mines | Discovered new exit (range 6) 1523 | -10/Mines | Entered Materials 1523 | -9/Materials | Evolved 2 slots: Propulsion x1, Utility x1 1524 | -9/Materials | Identified exit to Mines 2472 | -9/Materials | Entered Mines 2604 | -9/Mines | Build established: Hacker-Mutant 2630 | -9/Mines | Assisted by bots powering up and referring to "LRC-V3" 2637 | -9/Mines | Discovered new exit (range 12) 2683 | -9/Mines | Learned location of 1 exit from Materials 2737 | -9/Mines | Deemed a non-threat by the Exiles lab entrance 2737 | -9/Mines | Discovered new exit (range 5) 2767 | -9/Mines | Entered Exiles 2767 | -9/Exiles | Accompanied by 6 allies 2768 | -9/Exiles | Identified exit to Mines 2797 | -9/Exiles | Led the pair of lost Derelicts to a safe place 2797 | -9/Exiles | Met 8R-AWN 2818 | -9/Exiles | Met EX-HEX 2853 | -9/Exiles | Met EX-BIN 2961 | -9/Exiles | Met EX-DEC 3001 | -9/Exiles | Discovered exit to Mines (range 14) 3020 | -9/Exiles | Entered Mines 3020 | -8/Mines | Accompanied by 4 allies 3132 | -8/Mines | Discovered new exit (range 12) 3494 | -8/Mines | Discovered new exit (range 11) 3724 | -8/Mines | Entered Materials 3724 | -8/Materials | Accompanied by 4 allies 3724 | -8/Materials | Evolved 2 slots: Propulsion x1, Utility x1 3725 | -8/Materials | Identified exit to Factory 3866 | -8/Materials | Discovered exit to Factory (range 16) 3940 | -8/Materials | Identified Exp. Sensor Array 4071 | -8/Materials | Build established: Scavenger-Mutant 4362 | -8/Materials | Repaired Exp. Sensor Array 4722 | -8/Materials | Crushed by falling debris 4933 | -8/Materials | Repaired Imp. Carbon-fiber Leg 4982 | -8/Materials | Repaired Imp. Carbon-fiber Leg 5108 | -8/Materials | Entered Factory 5108 | -7/Factory | Evolved 2 slots: Power x1, Utility x1 5472 | -7/Factory | Repaired Imp. Carbon-fiber Leg 5512 | -7/Factory | Build established: Hacker-Mutant 5518 | -7/Factory | Repaired Imp. Medium Armor Plating 5557 | -7/Factory | Repaired Titanium Leg 5659 | -7/Factory | Garrison activated, responded to threat 6357 | -7/Factory | Discovered new exit (range 7) 6490 | -7/Factory | Entered another Factory area 6490 | -6/Factory | Evolved 2 slots: Utility x2 6584 | -6/Factory | Discovered new exit (range 15) 6606 | -6/Factory | Identified exit to Lower Caves 6953 | -6/Factory | Lost 3 parts (1p1n1u) 7372 | -6/Factory | Build established: Mutant 7440 | -6/Factory | Allied Derelicts emerged from ambush trap array 7520 | -6/Factory | Entered Lower Caves 7520 | -6/Lower Caves | Accompanied by 3 allies 7551 | -6/Lower Caves | Spotted B-75 Beast 7637 | -6/Lower Caves | Acquired the password to a Derelict Tinkerer's latest research 7640 | -6/Lower Caves | Learned 8 Factory zone layouts 7646 | -6/Lower Caves | Found Prototype Special Weapon 7658 | -6/Lower Caves | Learned Factory garrison access intel 8125 | -6/Lower Caves | Discovered new exit (range 8) 8263 | -6/Lower Caves | Identified exit to Lower Caves 8264 | -6/Lower Caves | Entered another Lower Caves area 8265 | -6/Lower Caves | Encountered a Warlord checkpoint 8293 | -6/Lower Caves | Discovered new exit (range 9) 8301 | -6/Lower Caves | Identified exit to Factory 8343 | -6/Lower Caves | Attracted the attention of an 0b10 checkpoint 8354 | -6/Lower Caves | Build established: Scavenger-Mutant 8740 | -6/Lower Caves | Discovered new exit (range 7) 8748 | -6/Lower Caves | Identified exit to Data Miner 8773 | -6/Lower Caves | Found Alien Artifact 8773 | -6/Lower Caves | Identified Core Expander 8773 | -6/Lower Caves | Installed Core Expander, added new Utility slot 8807 | -6/Lower Caves | Entered Data Miner 8807 | -6/Data Miner | Discovered new exit (range 6) 8823 | -6/Data Miner | Met Data Miner 8854 | -6/Data Miner | Learned location of Section 7 (-2) 8854 | -6/Data Miner | Acquired the access code to Warlord's prototype stash 8873 | -6/Data Miner | Received God Mode back door access code from Data Miner 8905 | -6/Data Miner | Identified exit to Proximity Caves 8906 | -6/Data Miner | Entered Proximity Caves 8910 | -5/Proximity Caves | Spotter reported a threat 8946 | -5/Proximity Caves | Escorted by Enhanced Grunt 8963 | -5/Proximity Caves | Spotter reported a threat 8996 | -5/Proximity Caves | Lost 3 parts (1p1n1w) 9026 | -5/Proximity Caves | Learned location of Armory (-4) 9028 | -5/Proximity Caves | Spotter reported a threat 9061 | -5/Proximity Caves | Attracted the attention of an 0b10 base 9119 | -5/Proximity Caves | Lost 7 parts (4n3u) 9186 | -5/Proximity Caves | Attracted the attention of an 0b10 checkpoint 9209 | -5/Proximity Caves | Core integrity fell below 50% 9214 | -5/Proximity Caves | Found Alien Artifact 9220 | -5/Proximity Caves | Lost 8 parts (1p4n2u1w) 9225 | -5/Proximity Caves | Discovered exit to Factory (range 3) 9226 | -5/Proximity Caves | Entered Factory 9226 | -5/Factory | Evolved 2 slots: Utility x1, Weapon x1 9227 | -5/Factory | Identified exit to Upper Caves 9227 | -5/Factory | Identified exit to Extension 9228 | -5/Factory | Identified exit to Factory 9229 | -5/Factory | Loaded intel: 4 garrison access locations 9233 | -5/Factory | Identified Molecular Deconstructor 9310 | -5/Factory | Sucked down chute 9310 | -5/Factory | Entered Waste 9311 | -5/Waste | Met a frightened Derelict 9317 | -5/Waste | Spotted C-40 Crusher 9318 | -5/Waste | Found Unknown Device 9318 | -5/Waste | Identified Adv. Force Booster 9322 | -5/Waste | Spotted C-40 Crusher 9323 | -5/Waste | Spotted C-40 Crusher 9323 | -5/Waste | Spotted C-40 Crusher 9325 | -5/Waste | EMP discharged 9331 | -5/Waste | System corruption reached 10% 9334 | -5/Waste | Spotted C-40 Crusher 9337 | -5/Waste | Spotted C-40 Crusher 9339 | -5/Waste | Discovered new exit (range 10) 9342 | -5/Waste | Identified exit to Factory 9343 | -5/Waste | Entered Factory 9507 | -5/Factory | Discovered exit to Factory (range 7) 9510 | -5/Factory | Core integrity fell below 50% 9512 | -5/Factory | Entered another Factory area 9512 | -4/Factory | Evolved 2 slots: Propulsion x1, Utility x1 9540 | -4/Factory | Lost 5 parts (1n3u1w) 9583 | -4/Factory | Build established: Mutant 9712 | -4/Factory | Identified Dimensional Node Initializer 9712 | -4/Factory | Initialized slip node 9749 | -4/Factory | Lost 5 parts (2n3w) 9913 | -4/Factory | Found Prototype Hackware 9923 | -4/Factory | Core integrity fell below 50% 10008 | -4/Factory | System corruption reached 10% 10018 | -4/Factory | Identified Exp. Hacking Suite 10065 | -4/Factory | Found Prototype Slashing Weapon 10065 | -4/Factory | Identified Molecular Scythe 10086 | -4/Factory | Core integrity fell below 20% 10412 | -4/Factory | Build established: Scavenger-Mutant 10484 | -4/Factory | Destroyed by S-27 Virus with Autogun Last Messages --------------- 10448_ Q=T9>KQAHV8MWP 10476_ Slug penetrates S-27 Virus. 10476_ S-27 Virus suffers critical hit (Destroy). 10476_ Destroyed Autogun. 10476_ K-01 Serf collects debris. 10481_ S-27 Virus suffers critical hit (Burn). 10481_ Slug penetrates S-27 Virus. 10483_ System corrupted: Component data lost. Map ----- +----------------------------------------------------+ | ????????????????????#%#????????????????# | | ????????????????????# #???????????????##+##+## | | ????????????????????# #???????????????# # | | ????????????????????# #???????????????#= # | | ????????????????????# #???????????????# """ # | | ????????????????????# #???????????????# T" + | | ????????????????????# #???????????????# """ # | | ????????????????????# #???????????????# # | | ??????????????????### ###?????????????######## | | ??????????????????# #######+#####???????? | | ??????????????????# ????? | | ??????????????????+ ???? | | ??????????????????# ??? | | ??????????????????# ##############???### | | ??????????????????## ###########?????????### | | ???????????????????# # [] #???????????? | | ???????????????????# % +%[ #???????????? | | ???????????????????# #= """ #???????????? | | ???????????????????# # """" #???????????? | | ???????????????????# # """" #???????????? | | ???????????????????# # """" * #???????????? | | ???????????????????# # ????????????? | | ???????????????????# # = ?????????????? | | ???????????????????# ########??????????????? | | ???????????????????#!! #?????????????????????? | | ???????????????????#/@=#?????????????????????? | | ???????????????????#%/!#?????????????????????? | | ???????????????????#/! #?????????????????????? | | ???????????????????#!! #?????????????????????? | | ???????????????????# #?????????????????????? | | ???????????????????# #?????????????????????? | | ??????????????????? #?????????????????????? | | ??????????????????? #?????????????????????? | | ??????????????????? s #?????????????????????? | | ?????????????????? s +?????????????????????? | | ?????????????????? #?????????????????????? | | ?????????????????? s #?????????????????????? | | ?????????????????? s #?????????????????????? | | ?????????????????# ?????????????????????? | | ?????????????????# ?????????????????????? | | ??????????????????? ?????????????????????? | | ??????????????????? ??????????????????????? | | ?????????????????????????????????????????????? | | ?????????????????????????????????????????????? | | ?????????????????????????????????????????????? | | ?????????????????????????????????????????????? | | ?????????????????????????????????????????????? | | ?????????????????????????????????????????????? | | ?????????????????????????????????????????????? | | ?????????????????????????????????????????????? | +----------------------------------------------------+ Best States ------------- Heat Dissipation 57 Energy Generation 31 Energy Capacity 480 Matter Stores 300 Matter Capacity 300 Sight Range 22 Robot Scan Range 20 Terrain Scan Density 10 ECM Strength 2 Armor Coverage 600 Resistance: TH 10 Point Defense Rating 160 Melee Speed Boost 30 Phase Shifting 5 Evasion (%) 63 Targeting Accuracy 8 Melee Accuracy 6 Target Analysis 9 Recoil Reduction 3 Force Boost 30 Salvage Targeting 4 Offensive Hacking 20 Authchip Count 1 Item Schematics ----------------- Imp. Carbon-fiber Leg | -8/Materials | Scanalyzed Hacking Suite | -8/Materials | Scanalyzed Combat Drone Bay | -6/Data Miner | Free Lgt. Regenerative Plating | -6/Data Miner | Free Cld. Gravmag System | -6/Data Miner | Free Hvy. Proton Cannon | -6/Data Miner | Free Prc. Energy Filter | -6/Data Miner | Free Centrium Wheel | -6/Data Miner | Free Adv. Actuator Array | -6/Data Miner | Free Dual-blade Saw | -6/Data Miner | Free Hardcell Cannon | -6/Data Miner | Free Robot Schematics ------------------ A-15 Conveyor | -6/Data Miner | Free B-60 Warrior | -6/Data Miner | Free H-66 Slayer | -6/Data Miner | Free G-67 Veteran | -6/Data Miner | Free M-22 Extractor | -6/Data Miner | Free Fabricated ------------ Nothing Alien Tech Used ----------------- Core Expander Dimensional Node Initializer Achievements -------------- None Challenges ------------ None Game ------ Seed RocketGrapheneBroadsword Manual? 0 Play Time 01:12:51 Cumulative 408.2 hours Start 2023.10.10 @ 10:28:47 End 2023.10.10 @ 20:05:03 Sessions 1 Manual Loads 0 Difficulty Rogue Special Mode None Game No. 728 Rogue 573 Adventurer 148 Explorer 7 Win Type - Total 17 Types 15/0/1/1/0/0/0/0/0 Lore% 78 Gallery% 88 Achievement% 72 Wizard Run 0 Options --------- ASCII 0 Keyboard 0 Movement Numpad Keybinds 0 Fullscreen 2 Font 18/SmallcapsGlow Map View 76x50 Tactical HUD 1 Map Filters NONE Filters NONE Steam 1 RUN: 905ee947-3a36-4b7a-acd9-4ff5e9bcb539